[Event "*** Titled Tuesday Blitz"]
[Site "Chess.com"]
[Date "2020.05.12"]
[Round "10"]
[White "LizaSolovyova"]
[Black "124chess"]
[Result "0-1"]
[WhiteElo "2605"]
[BlackElo "2793"]
[TimeControl "180+1"]
[EndTime "11:54:42 PDT"]
[Termination "124chess won by resignation"]

1. d4 {[%clk 0:03:00]} 1... d5 {[%clk 0:02:59.9]} 2. e3 {[%clk 0:03:00.2]} 2...
c6 {[%clk 0:02:58.9]} 3. Bd3 {[%clk 0:03:00.4]} 3... Nf6 {[%clk 0:02:58.4]} 4.
f4 {[%clk 0:02:58.9]} 4... g6 {[%clk 0:02:53]} 5. Nf3 {[%clk 0:02:58.8]} 5...
Bg7 {[%clk 0:02:53.5]} 6. c3 {[%clk 0:02:59.1]} 6... O-O {[%clk 0:02:54.1]} 7.
O-O {[%clk 0:02:59.4]} 7... Nbd7 {[%clk 0:02:54.2]} 8. Nbd2 {[%clk 0:02:58.9]}
8... c5 {[%clk 0:02:53.7]} 9. Ne5 {[%clk 0:02:58.9]} 9... Qc7 {[%clk 0:02:44.3]}
10. Qf3 {[%clk 0:02:55.8]} 10... b6 {[%clk 0:02:44.2]} 11. a4 {[%clk 0:02:36.3]}
11... a6 {[%clk 0:02:32.5]} 12. h3 {[%clk 0:02:29.4]} 12... Bb7 {[%clk
0:02:31.9]} 13. Rb1 {[%clk 0:02:23.8]} 13... Ne8 {[%clk 0:02:30.3]} 14. Qg4
{[%clk 0:02:13.9]} 14... Ndf6 {[%clk 0:02:25.2]} 15. Qh4 {[%clk 0:02:11.7]}
15... Nd6 {[%clk 0:02:24.7]} 16. Ndf3 {[%clk 0:02:05.2]} 16... Bc8 {[%clk
0:02:20.4]} 17. Ng5 {[%clk 0:02:04.4]} 17... Bf5 {[%clk 0:02:17.7]} 18. Bxf5
{[%clk 0:02:00.4]} 18... Nxf5 {[%clk 0:02:17.2]} 19. Qe1 {[%clk 0:02:00.7]}
19... h6 {[%clk 0:02:16.7]} 20. Ngf3 {[%clk 0:01:57.9]} 20... Ne4 {[%clk
0:02:16.4]} 21. Nd2 {[%clk 0:01:55.6]} 21... Nfd6 {[%clk 0:01:59.4]} 22. Nxe4
{[%clk 0:01:52.5]} 22... Nxe4 {[%clk 0:02:00.3]} 23. Qe2 {[%clk 0:01:41.3]}
23... Ng3 {[%clk 0:01:53.9]} 24. Qf3 {[%clk 0:01:41.1]} 24... Nxf1 {[%clk
0:01:54]} 25. Qxf1 {[%clk 0:01:42]} 25... e6 {[%clk 0:01:40.8]} 26. Nf3 {[%clk
0:01:37.1]} 26... Qc6 {[%clk 0:01:35.4]} 27. Ra1 {[%clk 0:01:35]} 27... b5
{[%clk 0:01:34.9]} 28. a5 {[%clk 0:01:34.3]} 28... b4 {[%clk 0:01:33]} 29. cxb4
{[%clk 0:01:30.6]} 29... cxb4 {[%clk 0:01:30.3]} 30. Bd2 {[%clk 0:01:31]} 30...
Rab8 {[%clk 0:01:28.9]} 31. Rc1 {[%clk 0:01:26.7]} 31... Qb5 {[%clk 0:01:28.8]}
32. Qxb5 {[%clk 0:01:23.6]} 32... Rxb5 {[%clk 0:01:29.7]} 33. Rc6 {[%clk
0:01:21]} 33... Ra8 {[%clk 0:01:29]} 34. Ne5 {[%clk 0:01:17.9]} 34... Bxe5
{[%clk 0:01:26.7]} 35. fxe5 {[%clk 0:01:15.9]} 35... Rxa5 {[%clk 0:01:25.2]} 36.
Bxb4 {[%clk 0:01:16.2]} 36... Rb5 {[%clk 0:01:25.6]} 37. Ba3 {[%clk 0:01:14.4]}
37... Rbb8 {[%clk 0:01:23.7]} 38. Kf2 {[%clk 0:01:12.2]} 38... Rc8 {[%clk
0:01:24]} 39. Rd6 {[%clk 0:01:11.1]} 39... g5 {[%clk 0:01:15.3]} 40. Kf3 {[%clk
0:01:08]} 40... Kg7 {[%clk 0:01:15.5]} 41. h4 {[%clk 0:01:02.9]} 41... Kg6
{[%clk 0:01:12.5]} 42. hxg5 {[%clk 0:00:59.9]} 42... hxg5 {[%clk 0:01:12.4]} 43.
Rd7 {[%clk 0:01:00.3]} 43... a5 {[%clk 0:01:11]} 44. Be7 {[%clk 0:00:58.7]}
44... a4 {[%clk 0:01:07.1]} 45. Ba3 {[%clk 0:00:57.9]} 45... Rc2 {[%clk
0:00:59.6]} 46. Rb7 {[%clk 0:00:54.1]} 46... Rh8 {[%clk 0:00:52.2]} 47. Ra7
{[%clk 0:00:48.2]} 47... Rh2 {[%clk 0:00:49.6]} 48. g3 {[%clk 0:00:43.6]} 48...
Kh5 {[%clk 0:00:29.6]} 49. e4 {[%clk 0:00:43.2]} 49... Rhf2+ {[%clk 0:00:15.4]}
50. Ke3 {[%clk 0:00:43.7]} 50... Rce2+ {[%clk 0:00:15.6]} 51. Kd3 {[%clk
0:00:43.8]} 51... dxe4+ {[%clk 0:00:16.3]} 52. Kc3 {[%clk 0:00:43.9]} 52... Rc2+
{[%clk 0:00:16]} 53. Kb4 {[%clk 0:00:43.9]} 53... Rxb2+ {[%clk 0:00:15]} 54.
Bxb2 {[%clk 0:00:44]} 54... Rxb2+ {[%clk 0:00:15.9]} 55. Kc3 {[%clk 0:00:44.4]}
55... Rf2 {[%clk 0:00:15.7]} 56. d5 {[%clk 0:00:41.5]} 56... exd5 {[%clk
0:00:15.3]} 57. Kd4 {[%clk 0:00:41.9]} 57... Kg4 {[%clk 0:00:15.2]} 58. Rxa4
{[%clk 0:00:41.4]} 58... Kxg3 {[%clk 0:00:15.2]} 59. Ra3+ {[%clk 0:00:37.4]}
59... Rf3 {[%clk 0:00:14.6]} 60. Ra7 {[%clk 0:00:34.1]} 60... Rd3+ {[%clk
0:00:13.8]} 61. Kc5 {[%clk 0:00:34.6]} 61... e3 {[%clk 0:00:14.4]} 62. Rxf7
{[%clk 0:00:32.3]} 62... e2 {[%clk 0:00:14.6]} 0-1

[Event "*** Titled Tuesday Blitz"]
[Site "Chess.com"]
[Date "2020.05.12"]
[Round "10"]
[White "manitodeplomo"]
[Black "Shield12"]
[Result "0-1"]
[WhiteElo "2612"]
[BlackElo "2796"]
[TimeControl "180+1"]
[EndTime "11:54:45 PDT"]
[Termination "Shield12 won on time"]

1. d4 {[%clk 0:03:00.9]} 1... Nf6 {[%clk 0:02:58.1]} 2. c4 {[%clk 0:03:00.6]}
2... e6 {[%clk 0:02:59]} 3. Nf3 {[%clk 0:03:00.2]} 3... b6 {[%clk 0:02:59.2]} 4.
g3 {[%clk 0:02:58.5]} 4... Bb7 {[%clk 0:02:59.7]} 5. Bg2 {[%clk 0:02:58.1]} 5...
Be7 {[%clk 0:03:00.6]} 6. Nc3 {[%clk 0:02:57.9]} 6... Ne4 {[%clk 0:03:00.6]} 7.
Bd2 {[%clk 0:02:57.6]} 7... Bf6 {[%clk 0:03:01]} 8. Qc2 {[%clk 0:02:51.3]} 8...
Nxd2 {[%clk 0:03:00.7]} 9. Qxd2 {[%clk 0:02:50.6]} 9... O-O {[%clk 0:03:01.6]}
10. e4 {[%clk 0:02:48.7]} 10... d6 {[%clk 0:03:01.8]} 11. O-O {[%clk 0:02:48.1]}
11... Nd7 {[%clk 0:03:02.4]} 12. Rfe1 {[%clk 0:02:48.6]} 12... g6 {[%clk
0:03:02.1]} 13. Rad1 {[%clk 0:02:49]} 13... Bg7 {[%clk 0:03:02.3]} 14. h3 {[%clk
0:02:49.5]} 14... e5 {[%clk 0:03:00.2]} 15. Kh2 {[%clk 0:02:49.7]} 15... a5
{[%clk 0:02:57.9]} 16. b3 {[%clk 0:02:49.4]} 16... h6 {[%clk 0:02:56.6]} 17. Nd5
{[%clk 0:02:49.1]} 17... c6 {[%clk 0:02:55.8]} 18. Nc3 {[%clk 0:02:48.5]} 18...
Qe7 {[%clk 0:02:48.7]} 19. dxe5 {[%clk 0:02:43.2]} 19... Nxe5 {[%clk 0:02:48.3]}
20. Na4 {[%clk 0:02:42.9]} 20... b5 {[%clk 0:02:30.1]} 21. cxb5 {[%clk
0:02:42.7]} 21... cxb5 {[%clk 0:02:31]} 22. Nb6 {[%clk 0:02:43.2]} 22... Rad8
{[%clk 0:02:30.2]} 23. Qxa5 {[%clk 0:02:38.3]} 23... Nxf3+ {[%clk 0:02:26.5]}
24. Bxf3 {[%clk 0:02:39.2]} 24... Qf6 {[%clk 0:02:17.9]} 25. Kg2 {[%clk
0:02:32]} 25... Qe5 {[%clk 0:02:08.7]} 26. Nd5 {[%clk 0:02:19.6]} 26... Bc6
{[%clk 0:02:03.2]} 27. Qc7 {[%clk 0:02:08.8]} 27... Bd7 {[%clk 0:01:58.5]} 28.
Bg4 {[%clk 0:01:52.9]} 28... Be6 {[%clk 0:01:51.9]} 29. Nf4 {[%clk 0:01:24.4]}
29... Bxg4 {[%clk 0:01:48.6]} 30. hxg4 {[%clk 0:01:23.8]} 30... Rfe8 {[%clk
0:01:41.9]} 31. Nd5 {[%clk 0:01:14.3]} 31... Rc8 {[%clk 0:01:39.3]} 32. Qb6
{[%clk 0:00:54.6]} 32... Rc2 {[%clk 0:01:36.4]} 33. Qxb5 {[%clk 0:00:50.6]}
33... Rxa2 {[%clk 0:01:33.3]} 34. Re2 {[%clk 0:00:45.2]} 34... Rxe2 {[%clk
0:01:28.4]} 35. Qxe2 {[%clk 0:00:44.2]} 35... Qxe4+ {[%clk 0:01:23.6]} 36. Qxe4
{[%clk 0:00:44]} 36... Rxe4 {[%clk 0:01:24.5]} 37. b4 {[%clk 0:00:39.6]} 37...
Re2 {[%clk 0:01:22.4]} 38. Rb1 {[%clk 0:00:18.7]} 38... Bd4 {[%clk 0:01:21.3]}
39. b5 {[%clk 0:00:16.4]} 39... Re5 {[%clk 0:00:57]} 40. Nf4 {[%clk 0:00:13]}
40... Bb6 {[%clk 0:00:54.7]} 41. Nd3 {[%clk 0:00:12.6]} 41... Rd5 {[%clk
0:00:53.5]} 42. Rb3 {[%clk 0:00:12.9]} 42... Kg7 {[%clk 0:00:50.8]} 43. f4
{[%clk 0:00:12.8]} 43... Kf6 {[%clk 0:00:48.7]} 44. Kf3 {[%clk 0:00:12.6]} 44...
Ke6 {[%clk 0:00:48.8]} 45. Ke2 {[%clk 0:00:11.8]} 45... Rd4 {[%clk 0:00:48.3]}
46. Rb4 {[%clk 0:00:10.7]} 46... Kd5 {[%clk 0:00:46.8]} 47. Rxd4+ {[%clk
0:00:09.3]} 47... Bxd4 {[%clk 0:00:47.7]} 48. f5 {[%clk 0:00:10.2]} 48... Kc4
{[%clk 0:00:46.4]} 49. fxg6 {[%clk 0:00:10.2]} 49... fxg6 {[%clk 0:00:47.3]} 50.
Nf4 {[%clk 0:00:09.9]} 50... g5 {[%clk 0:00:45.1]} 51. Ne6 {[%clk 0:00:09.8]}
51... Bb6 {[%clk 0:00:44.4]} 52. Ng7 {[%clk 0:00:09.2]} 52... d5 {[%clk
0:00:26.2]} 53. Nf5 {[%clk 0:00:07.6]} 53... Kxb5 {[%clk 0:00:22.9]} 54. Kd3
{[%clk 0:00:04.4]} 54... Kc5 {[%clk 0:00:20.2]} 55. Nxh6 {[%clk 0:00:03.8]}
55... Bd8 {[%clk 0:00:20.6]} 56. Nf5 {[%clk 0:00:01.2]} 56... Bf6 {[%clk
0:00:20.8]} 57. Ne3 {[%clk 0:00:01.6]} 57... Be5 {[%clk 0:00:20.4]} 58. Nf5
{[%clk 0:00:01.4]} 58... Kc6 {[%clk 0:00:20.9]} 59. Nh6 {[%clk 0:00:01.2]} 59...
Bxg3 {[%clk 0:00:20.2]} 60. Nf7 {[%clk 0:00:01.2]} 60... Bf4 {[%clk 0:00:20.6]}
0-1

[Event "*** Titled Tuesday Blitz"]
[Site "Chess.com"]
[Date "2020.05.12"]
[Round "10"]
[White "GeorgMeier"]
[Black "BAS8892"]
[Result "1-0"]
[WhiteElo "3008"]
[BlackElo "2715"]
[TimeControl "180+1"]
[EndTime "11:54:51 PDT"]
[Termination "GeorgMeier won on time"]

1. Nf3 {[%clk 0:03:00.9]} 1... d5 {[%clk 0:02:59.5]} 2. g3 {[%clk 0:03:01]} 2...
Nf6 {[%clk 0:02:59.1]} 3. Bg2 {[%clk 0:03:01.6]} 3... c6 {[%clk 0:02:59.4]} 4.
O-O {[%clk 0:03:02]} 4... Bf5 {[%clk 0:02:59.4]} 5. c4 {[%clk 0:03:01.6]} 5...
e6 {[%clk 0:02:58.8]} 6. cxd5 {[%clk 0:03:01.6]} 6... exd5 {[%clk 0:02:57.7]} 7.
d3 {[%clk 0:03:01.8]} 7... Be7 {[%clk 0:02:54.1]} 8. Nc3 {[%clk 0:03:02.1]} 8...
O-O {[%clk 0:02:51.2]} 9. Qb3 {[%clk 0:03:01.6]} 9... Qc8 {[%clk 0:02:46.2]} 10.
Be3 {[%clk 0:02:50.3]} 10... Nbd7 {[%clk 0:02:40.9]} 11. Rfc1 {[%clk 0:02:49.1]}
11... Nc5 {[%clk 0:02:06]} 12. Qd1 {[%clk 0:02:40.5]} 12... Bh3 {[%clk
0:01:54.6]} 13. b4 {[%clk 0:02:22.1]} 13... Bxg2 {[%clk 0:01:52.4]} 14. Kxg2
{[%clk 0:02:20.8]} 14... Ne6 {[%clk 0:01:46.1]} 15. Rab1 {[%clk 0:02:20.9]}
15... a6 {[%clk 0:01:45]} 16. h3 {[%clk 0:02:09.5]} 16... Re8 {[%clk 0:01:42.7]}
17. Nd4 {[%clk 0:02:09]} 17... Bf8 {[%clk 0:01:33.8]} 18. Na4 {[%clk 0:02:07.3]}
18... Qd8 {[%clk 0:01:25.1]} 19. Rc2 {[%clk 0:01:51.1]} 19... Nd7 {[%clk
0:01:17.8]} 20. Nxe6 {[%clk 0:01:42.5]} 20... Rxe6 {[%clk 0:01:17.3]} 21. Bd4
{[%clk 0:01:42.3]} 21... Qg5 {[%clk 0:01:12.9]} 22. e3 {[%clk 0:01:40.3]} 22...
h5 {[%clk 0:01:11.3]} 23. Nc5 {[%clk 0:01:20.9]} 23... Nxc5 {[%clk 0:00:53.1]}
24. bxc5 {[%clk 0:01:21.8]} 24... Re7 {[%clk 0:00:42.3]} 25. Rcb2 {[%clk
0:01:19.5]} 25... Rb8 {[%clk 0:00:41.6]} 26. Rb6 {[%clk 0:01:13.5]} 26... h4
{[%clk 0:00:36.1]} 27. Qg4 {[%clk 0:01:10.9]} 27... Qxg4 {[%clk 0:00:33.5]} 28.
hxg4 {[%clk 0:01:11.8]} 28... hxg3 {[%clk 0:00:33.5]} 29. Kxg3 {[%clk
0:01:09.9]} 29... Rd7 {[%clk 0:00:28]} 30. Rxc6 {[%clk 0:01:07.2]} 30... Re8
{[%clk 0:00:26]} 31. Rcb6 {[%clk 0:01:05.3]} 31... Ree7 {[%clk 0:00:26.3]} 32.
c6 {[%clk 0:01:01.2]} 32... bxc6 {[%clk 0:00:26.6]} 33. Rxc6 {[%clk 0:01:01.3]}
33... Re8 {[%clk 0:00:25.8]} 34. Rxa6 {[%clk 0:01:00.1]} 34... Bd6+ {[%clk
0:00:25.1]} 35. Kg2 {[%clk 0:01:00.3]} 35... Rc8 {[%clk 0:00:24]} 36. Rb5 {[%clk
0:00:56.6]} 36... Bf8 {[%clk 0:00:22.9]} 37. Raa5 {[%clk 0:00:54.8]} 37... Rcd8
{[%clk 0:00:23.1]} 38. a4 {[%clk 0:00:54.3]} 38... f6 {[%clk 0:00:22.8]} 39. Ra6
{[%clk 0:00:51.6]} 39... Rc8 {[%clk 0:00:22.5]} 40. g5 {[%clk 0:00:48]} 40...
fxg5 {[%clk 0:00:21.8]} 41. Rg6 {[%clk 0:00:46.4]} 41... Rf7 {[%clk 0:00:21.8]}
42. Rxg5 {[%clk 0:00:46.1]} 42... Rc2 {[%clk 0:00:21.6]} 43. e4 {[%clk
0:00:39.3]} 43... dxe4 {[%clk 0:00:21.9]} 44. dxe4 {[%clk 0:00:38.8]} 44... Rc4
{[%clk 0:00:22.1]} 45. Be3 {[%clk 0:00:30.4]} 45... Rxa4 {[%clk 0:00:21.3]} 46.
Rge5 {[%clk 0:00:22]} 46... Rc4 {[%clk 0:00:16.3]} 47. Re8 {[%clk 0:00:20.5]}
47... Kh7 {[%clk 0:00:16]} 48. Rd5 {[%clk 0:00:16.9]} 48... g6 {[%clk
0:00:09.8]} 49. Re6 {[%clk 0:00:11.3]} 49... Bg7 {[%clk 0:00:07.5]} 50. Rdd6
{[%clk 0:00:11]} 50... Bf8 {[%clk 0:00:07]} 51. Rd5 {[%clk 0:00:09.7]} 51... Bg7
{[%clk 0:00:06.9]} 52. Rg5 {[%clk 0:00:08.3]} 52... Rf6 {[%clk 0:00:06]} 53. Re7
{[%clk 0:00:08.1]} 53... Kg8 {[%clk 0:00:05.2]} 54. Rd5 {[%clk 0:00:08]} 54...
Rf7 {[%clk 0:00:04.9]} 55. Rd8+ {[%clk 0:00:07.7]} 55... Bf8 {[%clk 0:00:04.9]}
56. Ree8 {[%clk 0:00:07]} 56... Rc6 {[%clk 0:00:02.7]} 57. Bh6 {[%clk
0:00:06.7]} 57... Rcf6 {[%clk 0:00:02]} 58. f4 {[%clk 0:00:05.6]} 1-0

[Event "*** Titled Tuesday Blitz"]
[Site "Chess.com"]
[Date "2020.05.12"]
[Round "10"]
[White "pawel83"]
[Black "MPGM"]
[Result "1/2-1/2"]
[WhiteElo "2370"]
[BlackElo "2519"]
[TimeControl "180+1"]
[EndTime "11:54:52 PDT"]
[Termination "Game drawn by repetition"]

1. d4 {[%clk 0:02:57.4]} 1... f5 {[%clk 0:02:58.2]} 2. Nf3 {[%clk 0:02:54.4]}
2... Nf6 {[%clk 0:02:56.6]} 3. g3 {[%clk 0:02:17.3]} 3... e6 {[%clk 0:02:56.6]}
4. Bg2 {[%clk 0:02:13.3]} 4... d5 {[%clk 0:02:57.1]} 5. O-O {[%clk 0:02:12.5]}
5... Bd6 {[%clk 0:02:56.4]} 6. Nbd2 {[%clk 0:02:11.7]} 6... O-O {[%clk
0:02:55.7]} 7. b3 {[%clk 0:02:11.7]} 7... c6 {[%clk 0:02:54.8]} 8. Bb2 {[%clk
0:02:12]} 8... a5 {[%clk 0:02:53.7]} 9. c4 {[%clk 0:02:06.7]} 9... a4 {[%clk
0:02:52]} 10. Ne5 {[%clk 0:02:04]} 10... Nbd7 {[%clk 0:02:44.8]} 11. Nd3 {[%clk
0:02:02.5]} 11... a3 {[%clk 0:02:41.7]} 12. Bc3 {[%clk 0:02:01.6]} 12... Ne4
{[%clk 0:02:40]} 13. Qc2 {[%clk 0:01:56.2]} 13... Ndf6 {[%clk 0:02:13.7]} 14. f3
{[%clk 0:01:33.3]} 14... Nxc3 {[%clk 0:02:09.7]} 15. Qxc3 {[%clk 0:01:30.9]}
15... Qe7 {[%clk 0:01:58.5]} 16. e4 {[%clk 0:01:27.1]} 16... fxe4 {[%clk
0:01:23.8]} 17. fxe4 {[%clk 0:01:25]} 17... dxe4 {[%clk 0:01:24.7]} 18. Nxe4
{[%clk 0:01:23.4]} 18... Nxe4 {[%clk 0:01:25.1]} 19. Bxe4 {[%clk 0:01:21.8]}
19... Bd7 {[%clk 0:01:24.8]} 20. Qc2 {[%clk 0:01:13.6]} 20... g6 {[%clk
0:01:15.5]} 21. c5 {[%clk 0:01:09]} 21... Bc7 {[%clk 0:01:14.3]} 22. Qc4 {[%clk
0:01:09.4]} 22... Kg7 {[%clk 0:01:09.5]} 23. Ne5 {[%clk 0:01:01.6]} 23... Bxe5
{[%clk 0:01:05.4]} 24. dxe5 {[%clk 0:00:59]} 24... Rxf1+ {[%clk 0:00:55.6]} 25.
Rxf1 {[%clk 0:00:57.6]} 25... Rf8 {[%clk 0:00:55.6]} 26. Rxf8 {[%clk 0:00:56.5]}
26... Qxf8 {[%clk 0:00:56.5]} 27. Qd4 {[%clk 0:00:55.8]} 27... Be8 {[%clk
0:00:41.8]} 28. Qd6 {[%clk 0:00:52.1]} 28... Bf7 {[%clk 0:00:38.7]} 29. Qxf8+
{[%clk 0:00:50.8]} 29... Kxf8 {[%clk 0:00:38.3]} 30. Kf2 {[%clk 0:00:51.4]}
30... Kg7 {[%clk 0:00:34.7]} 31. Ke3 {[%clk 0:00:51.1]} 31... g5 {[%clk
0:00:34.8]} 32. g4 {[%clk 0:00:51.3]} 32... h5 {[%clk 0:00:32.3]} 33. h3 {[%clk
0:00:51.6]} 33... hxg4 {[%clk 0:00:29.2]} 34. hxg4 {[%clk 0:00:51.3]} 34... Kf8
{[%clk 0:00:28.9]} 35. Kd4 {[%clk 0:00:51]} 35... Ke7 {[%clk 0:00:29]} 36. Kc3
{[%clk 0:00:51.5]} 36... Kd7 {[%clk 0:00:28.8]} 37. Kb4 {[%clk 0:00:52]} 37...
Kc7 {[%clk 0:00:29.4]} 38. Kxa3 {[%clk 0:00:52]} 38... Be8 {[%clk 0:00:26.2]}
39. Kb4 {[%clk 0:00:51]} 39... Bd7 {[%clk 0:00:26.3]} 40. Ka5 {[%clk 0:00:50.9]}
40... Bc8 {[%clk 0:00:25.7]} 41. b4 {[%clk 0:00:49.4]} 41... Bd7 {[%clk
0:00:26.2]} 42. a4 {[%clk 0:00:49]} 42... Bc8 {[%clk 0:00:26.7]} 43. b5 {[%clk
0:00:49.2]} 43... Bd7 {[%clk 0:00:25.7]} 44. Bg6 {[%clk 0:00:46]} 44... cxb5
{[%clk 0:00:19.8]} 45. axb5 {[%clk 0:00:44.4]} 45... Bc8 {[%clk 0:00:16.5]} 46.
Be4 {[%clk 0:00:38.8]} 46... Bd7 {[%clk 0:00:13.5]} 47. Bf3 {[%clk 0:00:31.4]}
47... Be8 {[%clk 0:00:11.9]} 48. Kb4 {[%clk 0:00:27.1]} 48... b6 {[%clk
0:00:10.4]} 49. c6 {[%clk 0:00:24.6]} 49... Bg6 {[%clk 0:00:10.1]} 50. Be2
{[%clk 0:00:23.5]} 50... Bf7 {[%clk 0:00:05.8]} 51. Bc4 {[%clk 0:00:23.1]} 51...
Bg8 {[%clk 0:00:05.8]} 52. Kc3 {[%clk 0:00:23.1]} 52... Bf7 {[%clk 0:00:06.2]}
53. Kd4 {[%clk 0:00:23.4]} 53... Bg8 {[%clk 0:00:06.4]} 54. Bb3 {[%clk 0:00:18]}
54... Bf7 {[%clk 0:00:06.5]} 55. Bc2 {[%clk 0:00:18.5]} 55... Bg8 {[%clk
0:00:06.2]} 56. Bg6 {[%clk 0:00:19]} 56... Kd8 {[%clk 0:00:05.6]} 57. Ke4 {[%clk
0:00:17.2]} 57... Ke7 {[%clk 0:00:04.9]} 58. Kd4 {[%clk 0:00:15]} 58... Kd8
{[%clk 0:00:04.9]} 59. Be4 {[%clk 0:00:12.8]} 59... Kc7 {[%clk 0:00:05.1]} 60.
Bg6 {[%clk 0:00:12.8]} 60... Kd8 {[%clk 0:00:05.1]} 1/2-1/2

[Event "*** Titled Tuesday Blitz"]
[Site "Chess.com"]
[Date "2020.05.12"]
[Round "10"]
[White "Mikhail_Biryukov"]
[Black "ristingho"]
[Result "1-0"]
[WhiteElo "2659"]
[BlackElo "2529"]
[TimeControl "180+1"]
[EndTime "11:54:57 PDT"]
[Termination "Mikhail_Biryukov won on time"]

1. e4 {[%clk 0:03:00.9]} 1... c6 {[%clk 0:02:57.6]} 2. d4 {[%clk 0:03:00.1]}
2... d5 {[%clk 0:02:58.5]} 3. Nd2 {[%clk 0:03:00.7]} 3... dxe4 {[%clk
0:02:57.8]} 4. Nxe4 {[%clk 0:03:01.6]} 4... Bf5 {[%clk 0:02:58]} 5. Nc5 {[%clk
0:03:01.5]} 5... b6 {[%clk 0:02:57.4]} 6. Nb3 {[%clk 0:02:59.9]} 6... e6 {[%clk
0:02:57.6]} 7. Nf3 {[%clk 0:02:59.9]} 7... Nf6 {[%clk 0:02:54.5]} 8. g3 {[%clk
0:03:00.1]} 8... Bd6 {[%clk 0:02:53.7]} 9. Bg2 {[%clk 0:03:00.6]} 9... O-O
{[%clk 0:02:53.5]} 10. O-O {[%clk 0:03:01.2]} 10... Nbd7 {[%clk 0:02:54.1]} 11.
Nh4 {[%clk 0:02:58.3]} 11... Qc7 {[%clk 0:02:50.7]} 12. Nxf5 {[%clk 0:02:57.5]}
12... exf5 {[%clk 0:02:51.6]} 13. Qd3 {[%clk 0:02:57.2]} 13... g6 {[%clk
0:02:47.9]} 14. Bg5 {[%clk 0:02:50.1]} 14... Rfe8 {[%clk 0:02:45.7]} 15. Rfe1
{[%clk 0:02:49.7]} 15... Kg7 {[%clk 0:02:43.6]} 16. c4 {[%clk 0:02:45.3]} 16...
Bb4 {[%clk 0:02:17.9]} 17. Rxe8 {[%clk 0:02:42.5]} 17... Rxe8 {[%clk 0:02:18.8]}
18. a3 {[%clk 0:02:42.5]} 18... Bf8 {[%clk 0:02:12.2]} 19. c5 {[%clk 0:02:29]}
19... bxc5 {[%clk 0:02:07.9]} 20. Nxc5 {[%clk 0:02:28.8]} 20... Nxc5 {[%clk
0:01:37.9]} 21. dxc5 {[%clk 0:02:22]} 21... Bxc5 {[%clk 0:01:17.2]} 22. Bxf6+
{[%clk 0:02:21.4]} 22... Kxf6 {[%clk 0:01:16.6]} 23. Rc1 {[%clk 0:02:21.1]}
23... Qe5 {[%clk 0:01:02.9]} 24. Bxc6 {[%clk 0:02:19.9]} 24... Re7 {[%clk
0:00:55.8]} 25. Bf3 {[%clk 0:02:19.3]} 25... Bb6 {[%clk 0:00:53.2]} 26. b4
{[%clk 0:02:14.5]} 26... f4 {[%clk 0:00:45.5]} 27. g4 {[%clk 0:02:06.3]} 27...
Qb2 {[%clk 0:00:39.7]} 28. Rc2 {[%clk 0:01:58.8]} 28... Re1+ {[%clk 0:00:39]}
29. Kg2 {[%clk 0:01:58.7]} 29... Qa1 {[%clk 0:00:37]} 30. Qc3+ {[%clk
0:01:52.8]} 30... Qxc3 {[%clk 0:00:35.6]} 31. Rxc3 {[%clk 0:01:52.9]} 31... Ra1
{[%clk 0:00:32.1]} 32. Be2 {[%clk 0:01:50.2]} 32... Kg5 {[%clk 0:00:27.9]} 33.
Rd3 {[%clk 0:01:41.3]} 33... f5 {[%clk 0:00:25.5]} 34. gxf5 {[%clk 0:01:37.5]}
34... Kxf5 {[%clk 0:00:26.4]} 35. h3 {[%clk 0:01:36.3]} 35... h5 {[%clk
0:00:25.8]} 36. h4 {[%clk 0:01:26.5]} 36... Ra2 {[%clk 0:00:19.8]} 37. Kf3
{[%clk 0:01:25]} 37... Kf6 {[%clk 0:00:19.8]} 38. Rc3 {[%clk 0:01:20.5]} 38...
Ra1 {[%clk 0:00:18.4]} 39. Rc6+ {[%clk 0:01:17.8]} 39... Kg7 {[%clk 0:00:16.8]}
40. Bd3 {[%clk 0:01:13.7]} 40... Rxa3 {[%clk 0:00:16.8]} 41. Rxg6+ {[%clk
0:01:13.6]} 41... Kf7 {[%clk 0:00:17.4]} 42. Rd6 {[%clk 0:01:13.6]} 42... Ke7
{[%clk 0:00:17.7]} 43. Rd5 {[%clk 0:01:11.7]} 43... Ke6 {[%clk 0:00:17.9]} 44.
Ke4 {[%clk 0:01:10.8]} 44... Bxf2 {[%clk 0:00:17.9]} 45. Bc4 {[%clk 0:01:10.4]}
45... Ke7 {[%clk 0:00:17.3]} 46. Rxh5 {[%clk 0:01:08.6]} 46... Bg3 {[%clk
0:00:17.6]} 47. Rh7+ {[%clk 0:01:07.6]} 47... Kf6 {[%clk 0:00:18]} 48. h5 {[%clk
0:01:07.2]} 48... Kg5 {[%clk 0:00:18.1]} 49. Bf7 {[%clk 0:01:06.3]} 49... f3
{[%clk 0:00:18.5]} 50. Rg7+ {[%clk 0:01:05.8]} 50... Kh4 {[%clk 0:00:17]} 51. h6
{[%clk 0:00:55]} 51... f2 {[%clk 0:00:17.1]} 52. Bc4 {[%clk 0:00:54.6]} 52...
Ra6 {[%clk 0:00:12.3]} 53. h7 {[%clk 0:00:51.6]} 53... Rh6 {[%clk 0:00:11.8]}
54. Kf3 {[%clk 0:00:51.8]} 54... Be5 {[%clk 0:00:09.6]} 55. Re7 {[%clk
0:00:51.2]} 55... Bc3 {[%clk 0:00:09.5]} 56. b5 {[%clk 0:00:49.2]} 56... Kg5
{[%clk 0:00:09.8]} 57. Kxf2 {[%clk 0:00:48.5]} 57... Kf6 {[%clk 0:00:10.1]} 58.
Rxa7 {[%clk 0:00:46.4]} 58... Kf5 {[%clk 0:00:09.9]} 59. Rc7 {[%clk 0:00:44.8]}
59... Ke5 {[%clk 0:00:09]} 60. Bd3 {[%clk 0:00:42.6]} 60... Kd4 {[%clk
0:00:07.7]} 61. Rd7+ {[%clk 0:00:42.4]} 61... Kc5 {[%clk 0:00:07.4]} 62. Kf3
{[%clk 0:00:42.5]} 62... Rf6+ {[%clk 0:00:05.8]} 63. Kg4 {[%clk 0:00:42.3]}
63... Rh6 {[%clk 0:00:05.8]} 64. Rc7+ {[%clk 0:00:33.6]} 64... Kb4 {[%clk
0:00:06.1]} 65. Rc6 {[%clk 0:00:32.9]} 65... Rh1 {[%clk 0:00:05.2]} 66. b6
{[%clk 0:00:32.3]} 66... Rg1+ {[%clk 0:00:04.5]} 67. Kf3 {[%clk 0:00:31.8]}
67... Bd4 {[%clk 0:00:03.8]} 68. b7 {[%clk 0:00:31.4]} 1-0